fUST/lending_fUST_20251220
["ID","MTS","AMOUNT","RATE_DAILY","PERIOD"]
[399244304,1766200691494,-310.98655757,0.00013599,2]
[399244305,1766200694094,-196.21655622,0.00013599,2]
[399244383,1766200747001,-65.33194839,0.00013599,2]
[399244384,1766200747022,-196.29484181,0.00013599,2]
[399244385,1766200748969,-370.2531778,0.00013599,2]
[399244388,1766200754657,-180.3732098,0.00013599,2]
[399244389,1766200757205,-399.92731607,0.00013599,2]
[399244390,1766200759349,-322.31467178,0.00013599,2]
[399244391,1766200770895,1067.931809,0.00012697,2]
[399244392,1766200777102,-346.61445368,0.00013599,2]
[399244394,1766200806942,-251.19015104,0.00013599,2]
[399244395,1766200806967,-21.93899535,0.00013599,2]
[399244396,1766200810191,500.0,0.00013273,2]
[399244397,1766200818533,500.0,0.00013273,2]
[399244398,1766200820705,500.0,0.00013273,2]
[399244399,1766200835965,4872.92549904,0.00013515,2]
[399244400,1766200835995,127.07450096,0.00013515,2]
[399244401,1766200864158,500.0,0.00013273,2]
[399244421,1766200901214,5895.1873576,0.00012696,2]
[399244422,1766200923889,500.0,0.00013273,2]
[399244423,1766200928332,2977.74814144,0.00013515,2]
[399244424,1766200928360,2022.25185856,0.00013515,2]
[399244425,1766200931335,500.0,0.00013273,2]
[399244426,1766200931659,500.0,0.00013273,2]
[399244427,1766200952789,5000.0,0.00013515,2]
[399244428,1766200971079,150.0,9.876e-05,2]
[399244429,1766200971485,150.0,0.00010347,2]
[399244430,1766200971895,150.0,0.00010817,2]
[399244431,1766200972312,150.0,0.00011287,2]
[399244432,1766200976651,370.90884733,0.00013515,2]
[399244436,1766201043125,500.0,0.00013273,2]
[399244437,1766201043257,500.0,0.00013273,2]
[399244440,1766201050398,6.84929411,0.00013273,2]
[399244441,1766201050422,493.15070589,0.00013273,2]
[399244445,1766201084477,1000.0,0.00013,2]
[399244446,1766201101370,150.0,9.926e-05,2]
[399244447,1766201101793,150.0,0.00010399,2]
[399244449,1766201102582,150.0,0.00010872,2]
[399244450,1766201103039,150.0,0.00011344,2]
[399244451,1766201103446,150.0,0.00011817,2]
[399244452,1766201106585,500.0,0.00013273,2]
[399244453,1766201109256,500.0,0.00013273,2]
[399244454,1766201109608,500.0,0.00013273,2]
[399244455,1766201114149,500.0,0.00013273,2]
[399244456,1766201115664,172.604762,6.345e-05,2]
[399244457,1766201115866,172.604762,0.00012691,2]
[399244458,1766201116170,4629.09115267,0.00013397,2]
[399244459,1766201118331,500.0,0.00013273,2]
[399244461,1766201140155,2525.70932333,0.00013397,2]
[399244462,1766201140188,2474.29067667,0.00013397,2]
[399244463,1766201157235,5000.0,0.00013397,2]
[399244464,1766201163514,500.0,0.00013273,2]
[399244465,1766201167180,500.0,0.00013273,2]
[399244466,1766201168228,150.0,9.885e-05,2]
[399244467,1766201168617,150.0,0.00010356,2]
[399244468,1766201169021,150.0,0.00010826,2]
[399244469,1766201169462,150.0,0.00011297,2]
[399244470,1766201169882,150.0,0.00011768,2]
[399244471,1766201170286,150.0,0.00012239,2]
[399244472,1766201172570,501.33848015,0.00013273,2]
[399244473,1766201173194,124.38084318,0.00013273,2]
[399244474,1766201188300,5000.0,0.00013273,2]
[399244475,1766201212327,5000.0,0.00013273,2]
[399244476,1766201235209,0.01,9.851e-05,2]
[399244477,1766201235234,149.99,9.851e-05,2]
[399244478,1766201236012,5000.0,0.00013273,2]
[399244479,1766201236119,150.0,0.0001032,2]
[399244480,1766201236417,-375.61915682,0.00013273,2]
[399244481,1766201236440,-124.38084318,0.00013273,2]
[399244482,1766201236525,150.0,0.00010789,2]
[399244483,1766201236977,150.0,0.00011259,2]
[399244484,1766201237402,150.0,0.00011728,2]
[399244485,1766201237827,150.0,0.00012197,2]
[399244486,1766201237882,-375.61915682,0.00013273,2]
[399244487,1766201237901,-50.10180882,0.00013273,2]
[399244488,1766201238716,153.95,0.00012666,2]
[399244489,1766201239149,175.94,0.00013135,2]
[399244490,1766201239896,-328.74872386,0.00013273,2]
[399244492,1766201260698,3770.13,0.00013273,2]
[399244493,1766201260720,1229.87,0.00013273,2]
[399244494,1766201284467,423.72037392,0.00010618,2]
[399244495,1766201302129,-121.14946732,0.00013273,2]
[399244496,1766201302151,-66.91780983,0.00013273,2]
[399244497,1766201305679,150.0,9.866e-05,2]
[399244498,1766201306082,150.0,0.00010336,2]
[399244499,1766201306490,150.0,0.00010806,2]
[399244500,1766201306570,150.0,0.00011276,2]
[399244501,1766201306955,150.0,0.00011746,2]
[399244502,1766201307861,153.07,0.00012215,2]
[399244504,1766201308272,178.58,0.00012685,2]
[399244505,1766201308688,204.1,0.00013155,2]
[399244506,1766201315189,7060.66962608,0.0001,2]
[399244507,1766201315210,7980.61317798,0.0001,2]
[399244508,1766201315897,2019.39682202,0.0001,2]
[399244509,1766201315920,894.84307295,0.0001,2]
[399244510,1766201316947,245.0,0.00012,2]
[399244511,1766201319359,245.3758388,0.00013,3]
[399244512,1766201319939,1763.24756591,8.9e-05,2]
[399244513,1766201331317,5000.0,0.00013273,2]
[399244514,1766201346983,-261.83091403,0.00013273,2]
[399244515,1766201347003,-76.28045805,0.00013273,2]
[399244516,1766201349037,-220.57047988,0.00013273,2]
[399244517,1766201354311,1851.54352234,0.00013273,2]
[399244518,1766201354333,3148.45647766,0.00013273,2]
[399244519,1766201368122,-203.14906207,0.00013273,2]
[399244520,1766201376502,150.0,9.906e-05,2]
[399244521,1766201376949,150.0,0.00010378,2]
[399244522,1766201377870,150.0,0.0001085,2]
[399244523,1766201378275,181.88,0.00011321,2]
[399244524,1766201378678,227.36,0.00011793,2]
[399244525,1766201379091,272.83,0.00012265,2]
[399244526,1766201379476,318.3,0.00012737,2]
[399244527,1766201379948,363.77,0.00013208,2]
[399244528,1766201398045,-5000.0,0.0001346,2]
[399244529,1766201401081,958.80890351,0.00013273,2]
[399244530,1766201405645,-4041.19109649,0.00013273,2]
[399244531,1766201405674,-500.0,0.00013273,2]
[399244532,1766201405705,-221.11522232,0.00013528,2]
[399244570,1766201412604,-500.0,0.00013273,2]
[399244571,1766201412632,-612.0,0.00013528,2]
[399244572,1766201412665,-1200.0,0.00013679,2]
[399244573,1766201412781,-409.24,0.0001368,2]
[399244574,1766201412810,-300.0,0.00013692,2]
[399244575,1766201412837,-300.0,0.00013693,2]
[399244576,1766201412864,-157.0,0.00013693,2]
[399244577,1766201412891,-300.0,0.00013693,2]
[399244578,1766201412918,-300.0,0.00013693,2]
[399244579,1766201412945,-643.53,0.00013694,2]
[399244609,1766201419265,-500.0,0.00013273,2]
[399244610,1766201419299,-220.57047988,0.00013273,2]
[399244611,1766201419333,-556.47,0.00013694,2]
[399244612,1766201419368,-385.08113376,0.00013694,2]
[399244613,1766201419513,-501.33147227,0.00013698,2]
[399244614,1766201419544,-500.0,0.00013698,2]
[399244615,1766201419574,-518.00917463,0.00013698,2]
[399244616,1766201419602,-600.08547892,0.00013698,2]
[399244617,1766201419772,-2436.91452108,0.00013698,2]
[399244618,1766201419798,-500.0,0.00013698,2]
[399244619,1766201419825,-520.18644978,0.00013698,2]
[399244642,1766201422187,500.0,0.00013273,2]
[399244643,1766201424977,2585.80805828,0.00013698,2]
[399244644,1766201425000,2414.19194172,0.00013698,2]
[399244645,1766201425681,500.0,0.00013273,2]
[399244646,1766201427686,300.0,0.00013673,2]
[399244689,1766201432170,-1051.2016312,0.00013698,2]
[399244838,1766201435275,232.49646508,0.00013273,2]
[399244872,1766201438249,-4303.43470932,0.00013698,2]
[399245104,1766201440755,-3e-08,0.00013698,2]
[399245106,1766201440766,-5638.4661135,0.00013698,2]
[399245362,1766201443340,-547.559848,0.00013698,2]
[399245891,1766201448467,5000.0,0.00013698,2]
[399246078,1766201450501,150.0,9.905e-05,2]
[399246120,1766201450902,150.0,0.00010377,2]
[399246135,1766201451314,150.0,0.00010849,2]
[399246145,1766201451694,150.0,0.0001132,2]
[399246146,1766201452596,150.0,0.00011792,2]
[399246147,1766201453018,150.0,0.00012264,2]
[399246148,1766201453419,150.0,0.00012735,2]
[399246149,1766201453827,150.0,0.00013207,2]
[399246150,1766201462477,300.0,0.00013697,2]
[399246151,1766201466867,53.3215932,0.00013273,2]
[399246152,1766201466892,446.6784068,0.00013273,2]
[399246153,1766201467943,500.0,0.00013273,2]
[399246154,1766201469056,500.0,0.00013273,2]
[399246155,1766201470088,500.0,0.00013273,2]
[399246156,1766201472338,500.65284926,0.00013273,2]
[399246157,1766201475750,7552.67874394,0.00013566,2]
[399246158,1766201475773,10000.01,0.00013566,2]
[399246159,1766201524520,4710.9772419,0.00013023,2]
[399246161,1766201540278,-500.0,0.00013273,2]
[399246162,1766201540298,-193.5,0.00013273,2]
[399246163,1766201541769,-287.85575389,0.00013273,2]
[399246164,1766201550298,-18.64424611,0.00013273,2]
[399246165,1766201550319,-198.5,0.00013273,2]
[399246166,1766201550340,-304.1408483,0.00013273,2]
[399246167,1766201552247,-195.8591517,0.00013273,2]
[399246168,1766201552268,-281.41465633,0.00013273,2]
[399246169,1766201558261,-167.02822988,0.00013273,2]
[399246170,1766201647583,-51.55711379,0.00013273,2]
[399246171,1766201647604,-270.22216726,0.00013273,2]
[399246172,1766201649841,-192.5793027,0.00013273,2]
[399246173,1766201662525,-37.19853004,0.00013273,2]
[399246174,1766201662546,-182.25682745,0.00013273,2]
[399246175,1766201664563,-157.729808,0.00013273,2]
[399246176,1766201666535,-91.53160734,0.00013273,2]
[399246177,1766201666565,-96.94207035,0.00013273,2]
[399246178,1766201669538,-215.3026743,0.00013273,2]
[399246179,1766201672548,-30.02544735,0.00013273,2]
[399246180,1766201672585,-189.24179487,0.00013273,2]
[399246181,1766201674713,-268.90755529,0.00013273,2]
[399246182,1766201682963,-41.85064984,0.00013273,2]
[399246183,1766201682983,-187.44416155,0.00013273,2]
[399246184,1766201762275,300.0,0.00013272,2]
[399246185,1766201762770,300.0,0.00013272,2]
[399246186,1766201822567,300.0,0.00013272,2]
[399246187,1766201844013,-500.0,0.00013273,2]
[399246188,1766201844046,-500.0,0.00013273,2]
[399246189,1766201844076,-500.0,0.00013273,2]
[399246190,1766201844105,-395.00309562,0.00013273,2]
[399246191,1766201844134,-459.04578743,0.00013273,2]
[399246192,1766201844163,-157.729808,0.00013273,2]
[399246193,1766201844193,-500.0,0.00013273,2]
[399246194,1766201844744,-8062.43266653,0.00013273,2]
[399246195,1766201850741,-10000.01,0.00013273,2]
[399246196,1766201850951,-10000.01,0.00013273,2]
[399246197,1766201851130,-10000.01,0.00013273,2]
[399246198,1766201851354,-10000.01,0.00013273,2]
[399246199,1766201860510,5000.0,0.0001314,2]
[399246200,1766201876925,2336.15264066,0.00013273,2]
[399246201,1766201880155,452.58,0.00012329,2]
[399246202,1766201882279,300.0,0.00013272,2]
[399246203,1766201884747,1911.27735934,0.00013273,2]
[399246204,1766201884774,3088.72264066,0.00013273,2]
[399246205,1766201885398,1057.0,0.00013272,2]
[399246206,1766201899103,150.0,9.969e-05,2]
[399246207,1766201899504,294.4,0.00010443,2]
[399246208,1766201899956,441.6,0.00010918,2]
[399246209,1766201900348,588.8,0.00011393,2]
[399246210,1766201901282,736.0,0.00011868,2]
[399246211,1766201901688,883.2,0.00012342,2]
[399246212,1766201902093,1030.4,0.00012817,2]
[399246213,1766201908056,1729.88735934,0.00013273,2]
[399246214,1766201908078,3270.11264066,0.00013273,2]
[399246215,1766201925284,233.00590924,0.00013273,2]
[399246216,1766201929984,5731.2672455,0.000126,2]
[399246217,1766201933605,765.6242046,0.00013273,2]
[399246218,1766201933628,4234.3757954,0.00013273,2]
[399246219,1766201942300,300.0,0.00013272,2]
[399246221,1766201957286,5000.0,0.00013273,2]
[399246222,1766201977112,150.0,9.848e-05,2]
[399246223,1766201977516,248.41,0.00010317,2]
[399246224,1766201977941,67.2242046,0.00010786,2]
[399246225,1766201977976,305.3857954,0.00010786,2]
[399246226,1766201978372,496.82,0.00011255,2]
[399246227,1766201978810,621.02,0.00011724,2]
[399246228,1766201979229,745.22,0.00012192,2]
[399246229,1766201979628,869.43,0.00012661,2]
[399246230,1766201980040,993.63,0.0001313,2]
[399246231,1766201980684,5000.0,0.00013273,2]
[399246232,1766202001262,300.0,0.00013272,2]
[399246233,1766202002253,300.0,0.00013272,2]
[399246235,1766202003228,300.0,0.00013272,2]
[399246236,1766202003257,68.5042046,0.00013272,2]
[399246237,1766202003281,1131.4957954,0.00013272,2]
[399246238,1766202005121,5000.0,0.00013273,2]
[399246239,1766202028179,5000.0,0.00013,2]
[399246240,1766202028855,-300.0,0.00013188,2]
[399246241,1766202028984,-1490.57162284,0.00013188,2]
[399246242,1766202036896,250.0,0.00013151,2]
[399246243,1766202037026,-190.38963643,0.0001323,2]
[399246244,1766202051767,5000.0,0.0001323,2]
[399246245,1766202052612,150.0,9.885e-05,2]
[399246246,1766202053029,185.42,0.00010355,2]
[399246247,1766202053428,278.13,0.00010826,2]
[399246248,1766202053872,370.84,0.00011297,2]
[399246249,1766202054494,463.55,0.00011767,2]
[399246250,1766202054936,556.26,0.00012238,2]
[399246251,1766202055346,648.97,0.00012709,2]
[399246252,1766202055752,741.68,0.00013179,2]
[399246253,1766202065142,-57.0142092,0.0001323,2]
[399246254,1766202065170,-300.0,0.00013272,2]
[399246255,1766202066296,200.0,0.00013151,2]
[399246256,1766202074940,5000.0,0.00013273,2]
[399246257,1766202075553,200.0,0.00013178,2]
[399246258,1766202098373,3885.9815816,0.00013273,2]
[399246259,1766202098398,1114.0184184,0.00013273,2]
[399246261,1766202122647,300.0,0.00013272,2]
[399246262,1766202122919,5000.0,0.00013273,2]
[399246263,1766202126341,200.0,0.00013205,2]
[399246264,1766202128408,150.0,9.871e-05,2]
[399246265,1766202128795,150.0,0.00010341,2]
[399246266,1766202129196,211.39,0.00010811,2]
[399246267,1766202129689,281.85,0.00011281,2]
[399246268,1766202130088,352.32,0.00011751,2]
[399246269,1766202130504,422.78,0.00012221,2]
[399246271,1766202130915,493.24,0.00012691,2]
[399246274,1766202131338,563.71,0.00013161,2]
[399246294,1766202136970,242.0,0.00013233,2]
[399246310,1766202145799,518.7015816,0.00013273,2]
[399246311,1766202145822,4481.2984184,0.00013273,2]
[399246336,1766202168908,5000.0,0.00013273,2]
[399246337,1766202182367,300.0,0.00013272,2]
[399246338,1766202192674,5000.0,0.00013273,2]
[399246339,1766202203167,150.0,9.872e-05,2]
[399246340,1766202203570,150.0,0.00010342,2]
[399246341,1766202203983,150.0,0.00010812,2]
[399246342,1766202204885,150.0,0.00011282,2]
[399246343,1766202205304,185.25,0.00011752,2]
[399246344,1766202205709,222.3,0.00012222,2]
[399246345,1766202206118,259.35,0.00012692,2]
[399246346,1766202206559,296.4,0.00013162,2]
[399246347,1766202214868,1123.8255143,0.00013191,2]
[399246348,1766202215488,2012.8844857,0.00013273,2]
[399246349,1766202215511,2987.1155143,0.00013273,2]
[399246350,1766202217155,340.3686938,0.00012932,2]
[399246352,1766202239080,5000.0,0.00013263,2]
[399246353,1766202251907,-300.0,0.00013272,2]
[399246354,1766202262686,5000.0,0.00013273,2]
[399246356,1766202275223,150.0,9.85e-05,2]
[399246357,1766202275668,150.0,0.00010319,2]
[399246358,1766202276084,150.0,0.00010788,2]
[399246359,1766202276493,150.0,0.00011257,2]
[399246360,1766202276890,150.0,0.00011726,2]
[399246361,1766202277433,150.0,0.00012195,2]
[399246362,1766202277846,150.0,0.00012665,2]
[399246363,1766202278272,150.0,0.00013134,2]
[399246364,1766202287359,3200.01,0.00013273,2]
[399246365,1766202287384,1799.99,0.00013273,2]
[399246366,1766202301210,300.0,0.00013272,2]
[399246367,1766202302044,300.0,0.00013272,2]
[399246368,1766202302105,1744.1427878,0.00013173,2]
[399246369,1766202302672,300.0,0.00013272,2]
[399246370,1766202302929,290.0,0.00013272,2]
[399246371,1766202303533,1200.0,0.00013272,2]
[399246372,1766202310729,4065.8772122,0.00013273,2]
[399246373,1766202310752,934.1227878,0.00013273,2]
[399246374,1766202334410,5000.0,0.00013273,2]
[399246375,1766202343519,150.0,9.86e-05,2]
[399246376,1766202343916,150.0,0.00010329,2]
[399246377,1766202344333,175.01,0.00010799,2]
[399246378,1766202344739,233.34,0.00011268,2]
[399246379,1766202345132,291.68,0.00011738,2]
[399246380,1766202345531,350.01,0.00012208,2]
[399246381,1766202346011,408.35,0.00012677,2]
[399246382,1766202346342,466.68,0.00013147,2]
[399246383,1766202357876,1840.8172122,0.00013273,2]
[399246384,1766202357900,2264.65497056,0.00013273,2]
[399246385,1766202359458,182.09374737,0.00012932,2]
[399246386,1766202362245,300.0,0.00013272,2]
[399246388,1766202390166,-495.0,0.00013273,2]
[399246389,1766202390196,-500.0,0.00013273,2]
[399246390,1766202390223,-500.0,0.00013273,2]
[399246391,1766202390250,-500.0,0.00013273,2]
[399246392,1766202390278,-500.0,0.00013273,2]
[399246393,1766202390307,-500.0,0.00013273,2]
[399246394,1766202390334,-500.0,0.00013273,2]
[399246395,1766202390362,-500.0,0.00013273,2]
[399246396,1766202390388,-500.0,0.00013273,2]
[399246397,1766202390414,-500.0,0.00013273,2]
[399246398,1766202390807,-219.45535749,0.00013273,2]
[399246399,1766202401014,-5588.71056359,0.00013273,2]
[399246400,1766202401064,-10000.01,0.00013273,2]
[399246401,1766202401211,-10000.01,0.00013273,2]
[399246402,1766202406645,-10000.01,0.00013273,2]
[399246403,1766202406951,-10000.01,0.00013273,2]
[399246404,1766202407059,-4411.24943641,0.00013273,2]
[399246405,1766202407087,-500.0,0.00013273,2]
[399246406,1766202407142,-177.51112718,0.00013273,2]
[399246407,1766202407265,-322.48887282,0.00013273,2]
[399246408,1766202407292,-500.0,0.00013273,2]
[399246409,1766202407319,-501.01071519,0.00013273,2]
[399246410,1766202407348,-500.0,0.00013273,2]
[399246411,1766202407375,-500.0,0.00013273,2]
[399246412,1766202407404,-500.0,0.00013273,2]
[399246413,1766202407431,-500.0,0.00013273,2]
[399246414,1766202407458,-500.0,0.00013273,2]
[399246415,1766202407484,-501.39983585,0.00013273,2]
[399246416,1766202407510,-500.0,0.00013273,2]
[399246417,1766202407660,-350.21115228,0.00013273,2]
[399246418,1766202413717,-149.78884772,0.00013273,2]
[399246419,1766202413745,-500.0,0.00013273,2]
[399246420,1766202413772,-229.29481139,0.00013273,2]
[399246421,1766202413800,-500.0,0.00013273,2]
[399246422,1766202413828,-242.45576872,0.00013273,2]
[399246423,1766202413868,-608.0,0.00013273,2]
[399246424,1766202413904,-567.0,0.00013333,2]
[399246425,1766202413936,-369.0,0.00013333,2]
[399246426,1766202413967,-152.19606391,0.00013425,2]
[399246427,1766202414094,-2729.68891244,0.00013566,2]
[399246428,1766202414168,-634.85010408,0.00013566,2]
[399246429,1766202414203,-3905.78207104,0.00013566,2]
[399246430,1766202414234,-251.79325796,0.00013594,2]
[399246431,1766202414263,-500.0,0.00013594,2]
[399246432,1766202414293,-184.859342,0.00013594,2]
[399246433,1766202414344,-315.140658,0.00013594,2]
[399246434,1766202414363,-500.0,0.00013594,2]
[399246435,1766202414382,-500.0,0.00013594,2]
[399246436,1766202414392,-384.7921622,0.00013594,2]
[399246437,1766202414403,-500.0,0.00013594,2]
[399246438,1766202414413,-227.95359636,0.00013594,2]
[399246439,1766202414428,-272.04640364,0.00013594,2]
[399246440,1766202414439,-3633.7356674,0.00013595,2]
[399246441,1766202414459,-251.79325796,0.00013595,2]
[399246442,1766202414475,-500.0,0.00013595,2]
[399246443,1766202414490,-500.0,0.00013595,2]
[399246444,1766202419388,150.0,9.887e-05,2]
[399246445,1766202419792,150.0,0.00010358,2]
[399246446,1766202420197,150.0,0.00010829,2]
[399246447,1766202420601,150.0,0.00011299,2]
[399246448,1766202420996,150.08,0.0001177,2]
[399246449,1766202421389,180.1,0.00012241,2]
[399246450,1766202421876,210.12,0.00012712,2]
[399246452,1766202427527,-240.13,0.00013183,2]
[399246453,1766202427563,-500.0,0.00013273,2]
[399246454,1766202427597,-300.0,0.00013594,2]
[399246455,1766202427677,-7919.75,0.00013595,2]
[399246515,1766202489408,150.0,9.89e-05,2]
[399246516,1766202489845,150.0,0.00010361,2]
[399246517,1766202490537,150.0,0.00010832,2]
[399246518,1766202490707,150.0,0.00011303,2]
[399246519,1766202491107,150.0,0.00011774,2]
[399246520,1766202491508,150.0,0.00012245,2]
[399246521,1766202499798,3198.400732,0.00012726,2]
[399246522,1766202542551,300.0,0.00013272,2]
[399246523,1766202545095,-500.0,0.00013273,2]
[399246524,1766202545118,-500.0,0.00013273,2]
[399246525,1766202545150,-500.0,0.00013273,2]
[399246526,1766202545170,-209.06541421,0.00013273,2]
[399246527,1766202555676,5601.609268,0.00013173,2]
[399246528,1766202555700,10000.01,0.00013173,2]
[399246529,1766202555725,10000.01,0.00013173,2]
[399246530,1766202555749,10000.01,0.00013173,2]
[399246531,1766202555772,10000.01,0.00013173,2]
[399246532,1766202555796,10000.01,0.00013173,2]
[399246533,1766202555820,10000.01,0.00013173,2]
[399246534,1766202555844,10000.01,0.00013173,2]
[399246535,1766202562231,-300.00759593,0.00013173,2]
[399246536,1766202563661,-337.421615,0.00013173,2]
[399246537,1766202566870,-300.0,0.00013173,2]
[399246538,1766202576274,-378.57011044,0.00013173,2]
[399246539,1766202583825,5000.0,0.00013,2]
[399246540,1766202607772,3234.59443978,0.00013,2]
[399246541,1766202608472,-1765.40556022,0.00013,2]
[399246542,1766202608501,-300.0,0.00013172,2]
[399246543,1766202608532,-300.0,0.00013172,2]
[399246544,1766202608562,-1200.0,0.00013172,2]
[399246545,1766202619506,150.0,9.908e-05,2]
[399246546,1766202620389,150.0,0.0001038,2]
[399246547,1766202620811,150.0,0.00010851,2]
[399246548,1766202621222,157.3,0.00011323,2]
[399246549,1766202621680,196.62,0.00011795,2]
[399246550,1766202622044,235.95,0.00012267,2]
[399246551,1766202625158,-275.27,0.00012739,2]
[399246768,1766202634582,-4212.31819304,0.00013041,2]
[399246824,1766202638938,-17047.71483524,0.00013173,2]
[399246826,1766202638948,-607.0,0.00013173,2]
[399246828,1766202638957,-314.6,0.0001321,2]
[399246830,1766202638966,-500.0,0.00013273,2]
[399246832,1766202638975,-500.0,0.00013273,2]
[399246834,1766202638984,-500.0,0.00013273,2]
[399246836,1766202638993,-500.0,0.00013273,2]
[399246838,1766202639002,-500.0,0.00013273,2]
[399246840,1766202639011,-635.19392553,0.00013273,2]
[399246842,1766202639020,-171.27164144,0.00013273,2]
[399246844,1766202639029,-210.28488163,0.00013273,2]
[399246846,1766202639038,-500.46061568,0.00013273,2]
[399246848,1766202639048,-500.0,0.00013273,2]
[399246850,1766202639056,-500.0,0.00013273,2]
[399246852,1766202639065,-500.0,0.00013273,2]
[399246854,1766202639074,-500.0,0.00013273,2]
[399246856,1766202639083,-500.0,0.00013273,2]
[399246858,1766202639093,-500.0,0.00013273,2]
[399246860,1766202639101,-500.0,0.00013273,2]
[399246862,1766202639110,-500.0,0.00013273,2]
[399246864,1766202639119,-500.0,0.00013273,2]
[399246866,1766202639128,-500.0,0.00013273,2]
[399246868,1766202639137,-500.0,0.00013273,2]
[399246869,1766202639146,-206.0773996,0.00013273,2]
[399246871,1766202639155,-567.0,0.00013587,2]
[399246873,1766202639165,-1039.41784222,0.00013595,2]
[399246875,1766202639174,-1681.3434799,0.00013599,2]
[399246877,1766202639183,-2307.13262935,0.0001364,2]
[399246879,1766202639192,-300.0,0.00013673,2]
[399246881,1766202639201,-353.92,0.00013682,2]
[399246883,1766202639211,-649.12780858,0.00013698,2]
[399246885,1766202639220,-1168.43005545,0.00013698,2]
[399246887,1766202639229,-759.2122608,0.00013699,2]
[399246889,1766202639239,-167.064439,0.00013699,2]
[399246892,1766202639249,-500.0,0.00013699,2]
[399246893,1766202639259,-500.0,0.00013699,2]
[399246896,1766202639268,-500.0,0.00013699,2]
[399246898,1766202639277,-339.61964803,0.00013699,2]
[399246900,1766202639287,-501.59990885,0.00013699,2]
[399246902,1766202639296,-501.045877,0.00013699,2]
[399246904,1766202639306,-500.0,0.00013699,2]
[399246906,1766202639315,-500.0,0.00013699,2]
[399246908,1766202639324,-500.0,0.00013699,2]
[399246910,1766202639333,-500.0,0.00013699,2]
[399246912,1766202639342,-500.07959616,0.00013699,2]
[399246913,1766202639351,-500.0,0.00013699,2]
[399246916,1766202639360,-500.0,0.00013699,2]
[399246917,1766202639369,-500.66171655,0.00013699,2]
[399246920,1766202639378,-351.27071052,0.00013699,2]
[399246922,1766202639387,-500.0,0.00013699,2]
[399246923,1766202639396,-608.23960274,0.00013699,2]
[399246925,1766202639406,-500.0,0.00013699,2]
[399246927,1766202639414,-500.0,0.00013699,2]
[399246929,1766202639423,-500.0,0.00013699,2]
[399246931,1766202639432,-500.0,0.00013699,2]
[399246933,1766202639441,-500.0,0.00013699,2]
[399246935,1766202639450,-500.0,0.00013699,2]
[399246937,1766202639459,-500.58858641,0.00013699,2]
[399246939,1766202639468,-305.35868692,0.00013699,2]
[399246941,1766202639477,-501.3459358,0.00013699,2]
[399246943,1766202639486,-500.0,0.00013699,2]
[399246945,1766202639495,-501.04434648,0.00013699,2]
[399246947,1766202639504,-5193.22987304,0.00013777,2]
[399246949,1766202639514,-381.6610036,0.00013821,2]
[399246951,1766202639522,-501.96115267,0.00013821,2]
[399246953,1766202639531,-1000.0,0.00013821,2]